fUSD/lending_fUSD_20250606
["ID","MTS","AMOUNT","RATE_DAILY","PERIOD"]
[364810852,1749249040503,-205.0,0.00025559,2]
[364810853,1749249040514,-165.96553583,0.0002563,2]
[364810854,1749249040523,-150.0,0.00025653,2]
[364810855,1749249040536,-150.0,0.00025716,7]
[364810856,1749249040546,-351.6690172,0.00025728,13]
[364810857,1749249040555,-150.0,0.00025756,2]
[364810858,1749249040566,-4316.66566655,0.00025768,2]
[364810859,1749249040578,-168.0,0.00025819,2]
[364810860,1749249040589,-150.0,0.00025896,2]
[364810861,1749249040599,-150.0,0.00025907,2]
[364810862,1749249040611,-1072.32,0.0002594,2]
[364810863,1749249040622,-150.0,0.00025962,2]
[364810864,1749249040634,-150.0,0.00026031,2]
[364810865,1749249040645,-150.0,0.00026187,2]
[364810866,1749249040655,-250.0,0.00026198,2]
[364810867,1749249040665,-351.6690172,0.0002621,14]
[364810868,1749249040675,-150.0,0.00026268,2]
[364810869,1749249040684,-150.0,0.00026305,2]
[364810870,1749249040695,-23900.0,0.00026342,2]
[364810871,1749249040704,-169.64,0.0002636,2]
[364810872,1749249040713,-160.98,0.00026383,2]
[364810873,1749249040723,-1200.0,0.000264,9]
[364810874,1749249040733,-1000.0,0.0002642,2]
[364810875,1749249040743,-4000.0,0.00026485,4]
[364810876,1749249040753,-2500.0,0.000265,9]
[364810877,1749249040763,-166.38,0.00026547,2]
[364810878,1749249040772,-960.93,0.00026576,2]
[364810879,1749249040782,-3800.0,0.000266,9]
[364810880,1749249040791,-4316.66566655,0.00026606,2]
[364810881,1749249040801,-150.0,0.00026619,2]
[364810882,1749249040810,-184.52,0.00026629,2]
[364810884,1749249040820,-172.32,0.00026676,2]
[364810886,1749249040829,-150.0,0.00026684,2]
[364810887,1749249040838,-351.6690172,0.00026693,15]
[364810888,1749249040847,-5000.0,0.000267,9]
[364810889,1749249040856,-165.96553583,0.00026776,2]
[364810890,1749249040866,-6300.0,0.000268,9]
[364810891,1749249040875,-1000.0,0.00026817,2]
[364810892,1749249040885,-4000.0,0.00026836,4]
[364810893,1749249040894,-150.0,0.00026869,2]
[364810894,1749249040904,-1200.0,0.000269,9]
[364810896,1749249040914,-152.0,0.00026923,4]
[364810897,1749249040923,-999.99,0.00026923,2]
[364810898,1749249040932,-150.99,0.00026923,2]
[364810899,1749249040942,-150.0,0.0002693,2]
[364810900,1749249040951,-623.82080352,0.00026933,2]
[364810901,1749249040961,-207.4,0.00026933,2]
[364810902,1749249040971,-965.73903659,0.00027,2]
[364810903,1749249040981,-708.52,0.00027062,2]
[364810904,1749249040991,-173.76,0.00027062,2]
[364810905,1749249041000,-151.0,0.00027071,2]
[364810906,1749249041010,-1000.0,0.00027071,2]
[364810907,1749249041020,-500.0,0.00027071,2]
[364810908,1749249041030,-186.32160522,0.00027071,2]
[364810909,1749249041040,-300.0,0.00027071,2]
[364810910,1749249041050,-474.5747,0.00027087,2]
[364810911,1749249041059,-126146.6149,0.00027087,2]
[364810912,1749249041069,-1000.0,0.00027087,2]
[364810913,1749249041079,-301.05,0.00027114,2]
[364810914,1749249041088,-301.54,0.00027114,2]
[364810915,1749249041097,-302.32,0.00027114,2]
[364810916,1749249041106,-351.6690172,0.00027176,16]
[364810917,1749249041115,-4000.0,0.00027188,4]
[364810918,1749249041125,-150.0,0.00027244,2]
[364810919,1749249041134,-150.0,0.00027264,2]
[364810920,1749249041143,-301.75,0.00027274,2]
[364810921,1749249041153,-304.67,0.00027274,2]
[364810922,1749249041162,-1000.0,0.0002728,2]
[364810923,1749249041172,-5000.0,0.00027287,2]
[364810924,1749249041181,-150.0,0.00027292,2]
[364810925,1749249041192,-150.0,0.00027296,2]
[364810926,1749249041202,-22044.64,0.000273,2]
[364810927,1749249041211,-169.64,0.00027313,2]
[364810928,1749249041221,-150.0,0.00027322,2]
[364810929,1749249041230,-153.0,0.00027351,2]
[364810930,1749249041240,-153.0,0.00027351,2]
[364810931,1749249041250,-153.0,0.00027351,2]
[364810932,1749249041259,-153.0,0.00027351,2]
[364810933,1749249041269,-153.0,0.00027351,2]
[364810934,1749249041279,-153.0,0.00027351,2]
[364810935,1749249041289,-153.0,0.00027351,2]
[364810936,1749249041299,-153.0,0.00027351,2]
[364810937,1749249041308,-500.0,0.00027357,2]
[364810938,1749249041318,-8547.44803774,0.00027395,2]
[364810939,1749249041328,-480.0,0.00027397,5]
[364810940,1749249041338,-480.0,0.00027397,5]
[364810941,1749249041348,-480.0,0.00027397,5]
[364810942,1749249041358,-480.0,0.00027397,5]
[364810943,1749249041367,-480.0,0.00027397,5]
[364810944,1749249041377,-1959.661055,0.00027397,5]
[364810945,1749249041386,-480.0,0.00027397,5]
[364810946,1749249041396,-2212.720802,0.00027397,5]
[364810947,1749249041405,-480.0,0.00027397,5]
[364810948,1749249041415,-480.0,0.00027397,5]
[364810949,1749249041424,-480.0,0.00027397,5]
[364810950,1749249041433,-480.0,0.00027397,5]
[364810951,1749249041444,-678.27,0.00027397,5]
[364810952,1749249041453,-480.0,0.00027397,5]
[364810953,1749249041462,-480.0,0.00027397,5]
[364810954,1749249041471,-480.0,0.00027397,5]
[364810955,1749249041481,-480.0,0.00027397,5]
[364810956,1749249041490,-480.0,0.00027397,5]
[364810957,1749249041499,-512.9,0.00027397,5]
[364810958,1749249041509,-480.0,0.00027397,5]
[364810959,1749249041518,-480.0,0.00027397,5]
[364810960,1749249041530,-331.25284483,0.00027397,5]
[364810961,1749249041540,-480.0,0.00027397,5]
[364810962,1749249041549,-480.0,0.00027397,5]
[364810963,1749249041558,-480.0,0.00027397,5]
[364810964,1749249041567,-480.0,0.00027397,5]
[364810965,1749249041577,-600.0,0.00027397,30]
[364810966,1749249041587,-480.0,0.00027397,5]
[364810967,1749249041596,-529.84,0.00027397,5]
[364810968,1749249041606,-480.0,0.00027397,5]
[364810969,1749249041618,-480.0,0.00027397,5]
[364810970,1749249041629,-480.0,0.00027397,5]
[364810971,1749249041639,-480.0,0.00027397,5]
[364810972,1749249041649,-480.0,0.00027397,5]
[364810973,1749249041659,-249.69700801,0.00027397,5]
[364810974,1749249041669,-606.23,0.00027397,5]
[364810975,1749249041678,-480.0,0.00027397,5]
[364810976,1749249041688,-480.0,0.00027397,5]
[364810977,1749249041697,-677.96,0.00027397,5]
[364810978,1749249041707,-480.0,0.00027397,5]
[364810979,1749249041716,-480.0,0.00027397,5]
[364810980,1749249041726,-480.0,0.00027397,5]
[364810981,1749249041735,-830.71,0.00027397,5]
[364810982,1749249041745,-480.0,0.00027397,5]
[364810983,1749249041754,-480.0,0.00027397,5]
[364810984,1749249041763,-710.66,0.00027397,5]
[364810985,1749249041773,-480.0,0.00027397,5]
[364810986,1749249041783,-480.0,0.00027397,5]
[364810987,1749249041793,-480.0,0.00027397,5]
[364810988,1749249041802,-247.793539,0.00027397,5]
[364810989,1749249041811,-480.0,0.00027397,5]
[364810990,1749249041820,-480.0,0.00027397,5]
[364810991,1749249041829,-559.5,0.00027397,5]
[364810992,1749249041839,-480.0,0.00027397,5]
[364810993,1749249041847,-480.0,0.00027397,5]
[364810994,1749249041856,-480.0,0.00027397,5]
[364810995,1749249041865,-480.0,0.00027397,5]
[364810996,1749249041874,-549.49,0.00027397,5]
[364810997,1749249041883,-1076.21,0.00027397,5]
[364810998,1749249041892,-480.0,0.00027397,5]
[364810999,1749249041901,-480.0,0.00027397,5]
[364811000,1749249041910,-480.0,0.00027397,5]
[364811001,1749249041919,-527.39,0.00027397,5]
[364811002,1749249041928,-480.0,0.00027397,5]
[364811003,1749249041938,-480.0,0.00027397,5]
[364811004,1749249041948,-162.384994,0.00027397,5]
[364811005,1749249041957,-480.0,0.00027397,5]
[364811006,1749249041967,-555.9,0.00027397,5]
[364811007,1749249041975,-655.43,0.00027397,5]
[364811008,1749249041985,-480.0,0.00027397,5]
[364811009,1749249041994,-480.0,0.00027397,5]
[364811010,1749249042004,-1040.33,0.00027397,5]
[364811011,1749249042013,-480.0,0.00027397,5]
[364811012,1749249042022,-480.0,0.00027397,5]
[364811013,1749249042032,-177.574558,0.00027397,5]
[364811014,1749249042041,-480.0,0.00027397,5]
[364811015,1749249042051,-480.0,0.00027397,5]
[364811016,1749249042060,-480.0,0.00027397,5]
[364811017,1749249042069,-480.0,0.00027397,5]
[364811018,1749249042079,-480.0,0.00027397,5]
[364811019,1749249042089,-480.0,0.00027397,5]
[364811020,1749249042099,-480.0,0.00027397,5]
[364811021,1749249042109,-480.0,0.00027397,5]
[364811022,1749249042118,-556.96,0.00027397,5]
[364811023,1749249042128,-480.0,0.00027397,5]
[364811024,1749249042138,-480.0,0.00027397,5]
[364811025,1749249042148,-499.5,0.00027397,5]
[364811026,1749249042158,-480.0,0.00027397,5]
[364811027,1749249042167,-157.91056,0.00027397,5]
[364811028,1749249042177,-539.01,0.00027397,5]
[364811029,1749249042187,-480.0,0.00027397,5]
[364811030,1749249042196,-913.42,0.00027397,5]
[364811031,1749249042206,-573.44,0.00027397,5]
[364811032,1749249042215,-480.0,0.00027397,5]
[364811033,1749249042225,-480.0,0.00027397,5]
[364811034,1749249042234,-602.23,0.00027397,5]
[364811035,1749249042244,-150.994919,0.00027397,5]
[364811036,1749249042255,-553.04,0.00027397,5]
[364811037,1749249042265,-567.5,0.00027397,5]
[364811038,1749249042275,-480.0,0.00027397,5]
[364811039,1749249042284,-480.0,0.00027397,5]
[364811040,1749249042293,-480.0,0.00027397,5]
[364811041,1749249042303,-480.0,0.00027397,5]
[364811042,1749249042312,-502.06,0.00027397,5]
[364811043,1749249042322,-480.0,0.00027397,5]
[364811044,1749249042331,-480.0,0.00027397,5]
[364811045,1749249042341,-480.0,0.00027397,5]
[364811046,1749249042350,-217.752719,0.00027397,5]
[364811047,1749249042360,-480.0,0.00027397,5]
[364811048,1749249042369,-846.78,0.00027397,5]
[364811049,1749249042379,-480.0,0.00027397,5]
[364811050,1749249042389,-480.0,0.00027397,5]
[364811051,1749249042399,-480.0,0.00027397,5]
[364811052,1749249042408,-516.88,0.00027397,5]
[364811053,1749249042418,-480.0,0.00027397,5]
[364811054,1749249042427,-703.63,0.00027397,5]
[364811055,1749249042436,-480.0,0.00027397,5]
[364811056,1749249042447,-468.30249757,0.00027397,5]
[364811057,1749249042456,-491.95,0.00027397,5]
[364811058,1749249042466,-1302.12,0.00027397,5]
[364811059,1749249042475,-480.0,0.00027397,5]
[364811060,1749249042485,-480.0,0.00027397,5]
[364811061,1749249042495,-480.0,0.00027397,5]
[364811062,1749249042505,-861.895964,0.00027397,5]
[364811063,1749249042515,-480.0,0.00027397,5]
[364811064,1749249042527,-480.0,0.00027397,5]
[364811065,1749249042537,-480.0,0.00027397,5]
[364811066,1749249042546,-468.01416028,0.00027397,5]
[364811067,1749249042555,-503.98,0.00027397,5]
[364811068,1749249042566,-480.0,0.00027397,5]
[364811069,1749249042575,-480.0,0.00027397,5]
[364811070,1749249042585,-480.0,0.00027397,5]
[364811071,1749249042595,-480.0,0.00027397,5]
[364811072,1749249042606,-41603.54,0.00027397,5]
[364811073,1749249042615,-407.03412895,0.00027397,5]
[364811074,1749249042625,-480.0,0.00027397,5]
[364811075,1749249042635,-480.0,0.00027397,5]
[364811076,1749249042645,-480.0,0.00027397,5]
[364811077,1749249042655,-1007.79,0.00027397,5]
[364811078,1749249042664,-1425.585735,0.00027397,5]
[364811079,1749249042674,-480.0,0.00027397,5]
[364811080,1749249042684,-2220.64,0.00027397,5]
[364811081,1749249042694,-480.0,0.00027397,5]
[364811082,1749249042703,-1000.0,0.00027397,2]
[364811083,1749249042713,-480.0,0.00027397,5]
[364811084,1749249042723,-480.0,0.00027397,5]
[364811085,1749249042732,-1128.96,0.00027397,5]
[364811086,1749249042742,-480.0,0.00027397,5]
[364811087,1749249042751,-5394.96,0.00027397,5]
[364811089,1749249042761,-650.68,0.00027397,5]
[364811091,1749249042770,-480.0,0.00027397,5]
[364811092,1749249042780,-312.28744927,0.00027397,5]
[364811093,1749249042789,-480.0,0.00027397,5]
[364811094,1749249042799,-480.0,0.00027397,5]
[364811095,1749249042809,-480.0,0.00027397,5]
[364811096,1749249042819,-1252.94,0.00027397,5]
[364811097,1749249042829,-839.78,0.00027397,5]
[364811099,1749249042840,-480.0,0.00027397,5]
[364811101,1749249042851,-480.0,0.00027397,5]
[364811103,1749249042860,-480.0,0.00027397,5]
[364811104,1749249042870,-597.47,0.00027397,5]
[364811105,1749249042879,-2287.47,0.00027397,5]
[364811106,1749249042889,-480.0,0.00027397,5]
[364811107,1749249042899,-339.57217772,0.00027397,5]
[364811108,1749249042908,-1284.431354,0.00027397,5]
[364811109,1749249042918,-480.0,0.00027397,5]
[364811110,1749249042927,-480.0,0.00027397,5]
[364811111,1749249042937,-480.0,0.00027397,5]
[364811112,1749249042947,-776.7,0.00027397,5]
[364811113,1749249042956,-1339.2,0.00027397,5]
[364811115,1749249042965,-1133.55,0.00027397,5]
[364811116,1749249042974,-560.8,0.00027397,5]
[364811117,1749249042984,-480.0,0.00027397,5]
[364811118,1749249042993,-634.45,0.00027397,5]
[364811119,1749249043003,-2020.92,0.00027397,5]
[364811120,1749249043012,-955.86,0.00027397,5]
[364811121,1749249043022,-561.21,0.00027397,5]
[364811122,1749249043032,-480.0,0.00027397,5]
[364811123,1749249043041,-480.0,0.00027397,5]
[364811124,1749249043051,-2484.76,0.00027397,5]
[364811125,1749249043061,-751.76,0.00027397,5]
[364811126,1749249043071,-1476.09,0.00027397,5]
[364811127,1749249043080,-412.84101312,0.00027397,5]
[364811128,1749249043090,-480.0,0.00027397,5]
[364811129,1749249043100,-767.245013,0.00027397,5]
[364811130,1749249043110,-480.0,0.00027397,5]
[364811131,1749249043120,-1062.3,0.00027397,5]
[364811132,1749249043130,-684.25,0.00027397,5]
[364811133,1749249043139,-1006.98,0.00027397,5]
[364811134,1749249043149,-644.85,0.00027397,5]
[364811135,1749249043159,-480.0,0.00027397,5]
[364811136,1749249043387,-480.0,0.00027397,5]
[364811137,1749249043398,-747.15,0.00027397,5]
[364811138,1749249043409,-480.0,0.00027397,5]
[364811139,1749249043419,-2561.95,0.00027397,5]
[364811140,1749249043430,-480.0,0.00027397,5]
[364811141,1749249043440,-480.0,0.00027397,5]
[364811142,1749249043450,-1671.25,0.00027397,5]
[364811144,1749249043459,-480.0,0.00027397,5]
[364811145,1749249043469,-9406.81,0.00027397,5]
[364811146,1749249043479,-480.0,0.00027397,5]
[364811147,1749249043489,-480.0,0.00027397,5]
[364811148,1749249043499,-1049.08,0.00027397,5]
[364811149,1749249043509,-480.0,0.00027397,5]
[364811150,1749249043519,-1149.34,0.00027397,5]
[364811151,1749249043531,-480.0,0.00027397,5]
[364811152,1749249043541,-4644.09,0.00027397,5]
[364811153,1749249043551,-498.96160582,0.00027397,5]
[364811154,1749249043562,-480.0,0.00027397,5]
[364811155,1749249043571,-480.0,0.00027397,5]
[364811156,1749249043582,-480.0,0.00027397,5]
[364811157,1749249043592,-903.91,0.00027397,5]
[364811158,1749249043603,-480.0,0.00027397,5]
[364811159,1749249043613,-1214.33,0.00027397,5]
[364811160,1749249043623,-1366.78,0.00027397,5]
[364811161,1749249043633,-498.51,0.00027397,5]
[364811162,1749249043643,-480.0,0.00027397,5]
[364811163,1749249043654,-480.0,0.00027397,5]
[364811164,1749249043666,-782.13,0.00027397,5]
[364811165,1749249043676,-480.0,0.00027397,5]
[364811166,1749249043685,-919.51,0.00027397,5]
[364811167,1749249043697,-1040.43,0.00027397,5]
[364811168,1749249043707,-1015.0,0.00027397,5]
[364811169,1749249043716,-1599.2,0.00027397,5]
[364811170,1749249043726,-480.0,0.00027397,5]
[364811171,1749249043736,-480.0,0.00027397,5]
[364811172,1749249043745,-480.0,0.00027397,5]
[364811173,1749249043754,-480.0,0.00027397,5]
[364811174,1749249043764,-3545.61,0.00027397,5]
[364811175,1749249043774,-480.0,0.00027397,5]
[364811176,1749249043784,-1468.39,0.00027397,5]
[364811177,1749249043793,-619.5,0.00027397,5]
[364811178,1749249043803,-978.02,0.00027397,5]
[364811179,1749249043813,-480.0,0.00027397,5]
[364811180,1749249043822,-500.0,0.00027397,5]
[364811181,1749249043832,-500.0,0.00027397,5]
[364811182,1749249043842,-576.36,0.00027397,5]
[364811183,1749249043851,-480.0,0.00027397,5]
[364811184,1749249043862,-480.0,0.00027397,5]
[364811185,1749249043872,-480.0,0.00027397,5]
[364811186,1749249043881,-480.0,0.00027397,5]
[364811187,1749249043892,-1451.75,0.00027397,5]
[364811188,1749249043902,-1249.34,0.00027397,5]
[364811189,1749249043912,-480.0,0.00027397,5]
[364811190,1749249043922,-1324.83,0.00027397,5]
[364811191,1749249043933,-2825.94,0.00027397,5]
[364811192,1749249043943,-519.06,0.00027397,5]
[364811193,1749249043953,-480.0,0.00027397,5]
[364811194,1749249043963,-876.83,0.00027397,5]
[364811195,1749249043973,-480.0,0.00027397,5]
[364811196,1749249043983,-9134.21,0.00027397,5]
[364811197,1749249043993,-480.0,0.00027397,5]
[364811198,1749249044004,-530.99,0.00027397,5]
[364811199,1749249044014,-480.0,0.00027397,5]
[364811200,1749249044025,-13397.65,0.00027397,5]
[364811201,1749249044035,-753.87,0.00027397,5]
[364811202,1749249044045,-480.0,0.00027397,5]
[364811203,1749249044055,-525.14939861,0.00027397,5]
[364811204,1749249044064,-494.07,0.00027397,5]
[364811205,1749249044075,-489.37,0.00027397,5]
[364811206,1749249044086,-480.0,0.00027397,5]
[364811207,1749249044096,-480.0,0.00027397,5]
[364811208,1749249044106,-550.68,0.00027397,5]
[364811209,1749249044118,-1086.28,0.00027397,5]
[364811210,1749249044127,-480.0,0.00027397,5]
[364811211,1749249044137,-480.0,0.00027397,5]
[364811212,1749249044146,-1297.03,0.00027397,5]
[364811213,1749249044157,-5872.23,0.00027397,5]
[364811214,1749249044168,-480.0,0.00027397,5]
[364811215,1749249044177,-480.0,0.00027397,5]
[364811216,1749249044188,-1071.02,0.00027397,5]
[364811217,1749249044198,-1434.25,0.00027397,5]
[364811218,1749249044208,-480.0,0.00027397,5]
[364811219,1749249044217,-805.27,0.00027397,5]
[364811220,1749249044227,-480.0,0.00027397,5]
[364811221,1749249044237,-480.0,0.00027397,5]
[364811222,1749249044246,-1698.93,0.00027397,5]
[364811223,1749249044257,-480.0,0.00027397,5]
[364811224,1749249044266,-10035.0,0.00027397,5]
[364811225,1749249044275,-480.0,0.00027397,5]
[364811226,1749249044285,-1364.04,0.00027397,5]
[364811227,1749249044294,-3370.61,0.00027397,5]
[364811228,1749249044304,-2768.53,0.00027397,5]
[364811229,1749249044313,-360.0,0.00027397,5]
[364811230,1749249044322,-601.16,0.00027397,5]
[364811231,1749249044332,-480.0,0.00027397,5]
[364811232,1749249044341,-1472.37,0.00027397,5]
[364811233,1749249044351,-3042.72,0.00027397,5]
[364811234,1749249044360,-480.0,0.00027397,5]
[364811235,1749249044371,-480.0,0.00027397,5]
[364811236,1749249044381,-480.0,0.00027397,5]
[364811237,1749249044391,-480.0,0.00027397,5]
[364811238,1749249044400,-489.54,0.00027397,5]
[364811239,1749249044410,-480.0,0.00027397,5]
[364811240,1749249044421,-480.0,0.00027397,5]
[364811241,1749249044430,-480.0,0.00027397,5]
[364811242,1749249044440,-517.23,0.00027397,5]
[364811243,1749249044450,-1392.9,0.00027397,5]
[364811244,1749249044459,-480.0,0.00027397,5]
[364811245,1749249044468,-793.54,0.00027397,5]
[364811246,1749249044478,-480.0,0.00027397,5]
[364811247,1749249044487,-480.0,0.00027397,5]
[364811248,1749249044497,-480.0,0.00027397,5]
[364811249,1749249044506,-500.0,0.00027397,5]
[364811250,1749249044515,-480.0,0.00027397,5]
[364811251,1749249044525,-500.0,0.00027397,5]
[364811252,1749249044537,-658.0,0.00027397,5]
[364811253,1749249044547,-480.0,0.00027397,5]
[364811254,1749249044556,-549.97,0.00027397,5]
[364811255,1749249044566,-480.0,0.00027397,5]
[364811256,1749249044576,-2962.92,0.00027397,5]
[364811257,1749249044586,-682.01,0.00027397,5]
[364811258,1749249044595,-1377.03,0.00027397,5]
[364811259,1749249044606,-480.0,0.00027397,5]
[364811260,1749249044616,-1477.44,0.00027397,5]
[364811261,1749249044626,-480.0,0.00027397,5]
[364811262,1749249044636,-1388.75,0.00027397,5]
[364811263,1749249044645,-532.97,0.00027397,5]
[364811264,1749249044654,-832.53,0.00027397,5]
[364811265,1749249044664,-480.0,0.00027397,5]
[364811266,1749249044673,-480.0,0.00027397,5]
[364811267,1749249044682,-1207.13,0.00027397,5]
[364811268,1749249044693,-4118.2,0.00027397,5]
[364811269,1749249044702,-956.85,0.00027397,5]
[364811270,1749249044711,-480.0,0.00027397,5]
[364811271,1749249044720,-2445.82,0.00027397,5]
[364811272,1749249044729,-1102.03,0.00027397,5]
[364811273,1749249044738,-1097.1,0.00027397,5]
[364811274,1749249044748,-480.0,0.00027397,5]
[364811275,1749249044758,-480.0,0.00027397,2]
[364811276,1749249044768,-480.0,0.00027397,5]
[364811277,1749249044778,-3539.2,0.00027397,5]
[364811278,1749249044787,-480.0,0.00027397,5]
[364811279,1749249044796,-1807.67,0.00027397,5]
[364811280,1749249044806,-804.07,0.00027397,5]
[364811281,1749249044816,-480.0,0.00027397,5]
[364811282,1749249044825,-5286.52,0.00027397,5]
[364811283,1749249044834,-5286.52,0.00027397,5]
[364811284,1749249044844,-5286.52,0.00027397,5]
[364811285,1749249044853,-5286.52,0.00027397,5]
[364811286,1749249044863,-5286.52,0.00027397,5]
[364811287,1749249044872,-5286.52,0.00027397,5]
[364811288,1749249044882,-5286.52,0.00027397,5]
[364811289,1749249044891,-5286.52,0.00027397,5]
[364811290,1749249044901,-5286.52,0.00027397,5]
[364811291,1749249044911,-5286.52,0.00027397,5]
[364811292,1749249044920,-5286.52,0.00027397,5]
[364811293,1749249044929,-5286.52,0.00027397,5]
[364811294,1749249044938,-2612.22,0.00027397,5]
[364811295,1749249044948,-5286.52,0.00027397,5]
[364811296,1749249044957,-889.55,0.00027397,5]
[364811297,1749249044967,-5286.52,0.00027397,5]
[364811298,1749249044976,-5286.52,0.00027397,5]
[364811299,1749249044986,-5286.52,0.00027397,5]
[364811300,1749249044996,-5286.52,0.00027397,5]
[364811301,1749249045006,-5286.52,0.00027397,5]
[364811302,1749249045016,-5286.52,0.00027397,5]
[364811303,1749249045026,-5286.52,0.00027397,5]
[364811304,1749249045035,-5286.52,0.00027397,5]
[364811305,1749249045044,-5286.52,0.00027397,5]
[364811306,1749249045054,-5286.52,0.00027397,5]
[364811307,1749249045063,-5286.53196572,0.00027397,5]
[364811308,1749249045072,-480.0,0.00027397,5]
[364811309,1749249045082,-480.0,0.00027397,5]
[364811310,1749249045091,-480.7,0.00027397,5]
[364811311,1749249045100,-480.0,0.00027397,5]
[364811312,1749249045109,-480.0,0.00027397,5]
[364811313,1749249045118,-2341.98,0.00027397,5]
[364811314,1749249045127,-545.98,0.00027397,5]
[364811315,1749249045136,-480.0,0.00027397,5]
[364811316,1749249045146,-480.0,0.00027397,5]
[364811317,1749249045155,-480.0,0.00027397,5]
[364811318,1749249045164,-569.07,0.00027397,5]
[364811319,1749249045173,-480.0,0.00027397,5]
[364811320,1749249045183,-4003.64,0.00027397,5]
[364811321,1749249045192,-5914.05,0.00027397,5]
[364811322,1749249045202,-480.0,0.00027397,2]
[364811323,1749249045212,-480.0,0.00027397,5]
[364811324,1749249045221,-1337.49,0.00027397,5]
[364811325,1749249045231,-480.0,0.00027397,5]
[364811326,1749249045240,-829.99,0.00027397,5]
[364811327,1749249045249,-480.0,0.00027397,5]
[364811328,1749249045259,-480.0,0.00027397,5]
[364811329,1749249045268,-480.0,0.00027397,5]
[364811330,1749249045278,-480.0,0.00027397,5]
[364811331,1749249045287,-1525.61,0.00027397,5]
[364811332,1749249045297,-770.94,0.00027397,5]
[364811333,1749249045306,-794.19,0.00027397,5]
[364811334,1749249045316,-480.0,0.00027397,2]
[364811335,1749249045325,-480.0,0.00027397,5]
[364811336,1749249045335,-2791.74,0.00027397,5]
[364811337,1749249045344,-850.62,0.00027397,5]
[364811338,1749249045353,-1521.49,0.00027397,5]
[364811339,1749249045362,-1313.26,0.00027397,5]
[364811340,1749249045372,-620.14,0.00027397,5]
[364811341,1749249045383,-480.0,0.00027397,5]
[364811342,1749249045394,-480.0,0.00027397,5]
[364811343,1749249045404,-812.48,0.00027397,5]
[364811344,1749249045414,-480.0,0.00027397,2]
[364811345,1749249045424,-480.0,0.00027397,5]
[364811346,1749249045433,-480.0,0.00027397,5]
[364811347,1749249045444,-682.0,0.00027397,5]
[364811348,1749249045454,-555.67,0.00027397,5]
[364811349,1749249045463,-480.0,0.00027397,5]
[364811350,1749249045472,-1027.0,0.00027397,5]
[364811351,1749249045482,-879.45,0.00027397,5]
[364811352,1749249045491,-1000.0,0.00027397,5]
[364811353,1749249045502,-1454.01,0.00027397,5]
[364811354,1749249045513,-480.0,0.00027397,5]
[364811355,1749249045525,-1268.9,0.00027397,2]
[364811356,1749249045537,-154.53,0.00027397,2]
[364811357,1749249045546,-8547.44803774,0.00027411,2]
[364811358,1749249045556,-8547.44803774,0.00027428,2]
[364811359,1749249045565,-8547.44803774,0.00027444,2]
[364811360,1749249045574,-4316.66566655,0.00027444,2]
[364811361,1749249045583,-618.62382848,0.00027454,2]